Cogmind - Beta 10.1 @@@ ROGUE MODE // 2020.09.27 @ 14:01:15 Player: Tone Result: Destroyed by S-10 Pest with Light Assault Rifle Performance ------------- Evolutions (0) 0 Regions Visited (4) 800 Robots Destroyed (37) 185 Value Destroyed (903) 903 Prototype IDs (0) 0 Alien Tech Used (0) 0 Bonus (7) 7 TOTAL SCORE: 1895 Bonus ------- Follower Combat Kills 7 Cogmind --------- Core Integrity 0/250 Matter 206/300 Energy 239/265 System Corruption 0% Temperature Cool (0) Movement Treading (200) Ox2 Location -9/Mines Parts ------- > --- POWER (1) -------- Improved Ion Engine > --- PROPULSION (2) --- Light Treads Light Treads > --- UTILITY (2) ------ Humpback > --- WEAPON (2) ------- Light Assault Rifle Minigun > --- INVENTORY (24) --- Light Treads Improved Aluminum Leg Carbon-fiber Leg Wheel Heat Sink Large Storage Unit High-capacity Storage Unit High-capacity Storage Unit High-capacity Storage Unit High-capacity Storage Unit Humpback Hardened Light Armor Plating Hardened Light Armor Plating Hardened Light Armor Plating Hardened Medium Armor Plating Medium Laser Beam Cannon Light Assault Rifle Rocket Launcher Plasma Cutter Katana Peak State ------------ > --- POWER ------------ Improved Ion Engine > --- PROPULSION ------- Light Treads Wheel > --- UTILITY ---------- Humpback > --- WEAPON ----------- Light Assault Rifle Minigun > --- INVENTORY -------- Light Treads Light Treads Improved Aluminum Leg Carbon-fiber Leg Heat Sink Large Storage Unit High-capacity Storage Unit High-capacity Storage Unit High-capacity Storage Unit High-capacity Storage Unit Humpback Hardened Light Armor Plating Hardened Light Armor Plating Hardened Light Armor Plating Hardened Medium Armor Plating Medium Laser Beam Cannon Light Assault Rifle Rocket Launcher Plasma Cutter Katana [Rating: 13] Favorites ----------- Power Ion Engine Engine Ion Engine Propulsion Light Treads Treads Light Treads Leg Aluminum Leg Wheel Compact Wheel Utility High-capacity Storage Unit Storage High-capacity Storage Unit Weapon Assault Rifle Ballistic Gun Assault Rifle Launcher Rocket Launcher Build | -11 -10 -10 -10 -9 ------- Run | Scr Mat Min Exi Min Slots Evolved . | . . . . . Power . | . . . . . Propulsion . | . . . . . Utility . | . . . . . Weapon . | . . . . . Parts Attached 36 | 2 11 12 4 7 Power 2 | . 1 1 . . Engine 2 | . 1 1 . . Core . | . . . . . Reactor . | . . . . . Propulsion 17 | . 8 4 1 4 Treads 10 | . 4 3 . 3 Leg . | . . . . . Wheel 7 | . 4 1 1 1 Hover . | . . . . . Flight . | . . . . . Utility 8 | 1 2 2 3 . Device . | . . . . . Storage 8 | 1 2 2 3 . Processor . | . . . . . Hackware . | . . . . . Protection . | . . . . . Artifact . | . . . . . Weapon 9 | 1 . 5 . 3 Energy Gun . | . . . . . Energy Cannon . | . . . . . Ballistic Gun 6 | 1 . 3 . 2 Ballistic Cannon . | . . . . . Launcher 3 | . . 2 . 1 Special Weapon . | . . . . . Impact Weapon . | . . . . . Slashing Weapon . | . . . . . Piercing Weapon . | . . . . . Special Melee Weapon . | . . . . . Unidentified Prototypes . | . . . . . Parts Lost 6 | . . 3 . 3 Power . | . . . . . Propulsion 3 | . . 1 . 2 Utility . | . . . . . Weapon 3 | . . 2 . 1 Highest Loss Streak 3 | . . 2 . 3 Average Slot Usage (%) 96 | . 100 98 95 83 Engine 14 | . 14 14 14 14 Treads 20 | . 16 17 28 25 Wheel 7 | . 10 10 . 1 Storage 25 | . 28 28 23 14 Ballistic Gun 25 | . 28 26 28 12 Launcher 1 | . . . . 14 Naked Turns . | . . . . . Heaviest Build 92 | 15 41 73 89 92 Greatest Support 40 | 20 40 40 40 40 Greatest Overweight (x) 9 | . 2 4 5 9 Average Overweight (x) 1 | . . 2 1 3 Largest Inventory Capacity 24 | 8 16 20 24 24 Average Capacity 16 | 6 10 19 20 24 Most Carried 24 | 6 16 20 24 24 Average Carried 15 | 6 9 18 18 21 Final Capacity 24 | 8 16 20 24 24 Final Carried 24 | 6 16 20 24 22 Class Distribution -------------------- 54% | Hauler-Mutant 45% | Mutant Dominant Class ---------------- Mutant | -10/Materials Hauler-Mutant | -10/Mines Hauler-Mutant | -10/Exiles Hauler-Mutant | -9/Mines Resources | -11 -10 -10 -10 -9 ----------- Run | Scr Mat Min Exi Min Matter Collected 939 | 238 298 286 . 117 Remotely . | . . . . . Salvage Created 907 | 62 337 338 . 170 Parts 63 | 2 21 24 . 16 Haulers Intercepted 1 | . 1 . . . Recyclers Shooed 1 | . 1 . . . Parts Field Recycled . | . . . . . Retrieved Matter . | . . . . . Parts Self-Destructed . | . . . . . Prevented . | . . . . . Kills | -11 -10 -10 -10 -9 ------- Run | Scr Mat Min Exi Min Combat Hostiles Destroyed 31 | . 10 12 . 9 Guns 16 | . 8 8 . . AOE 15 | . 2 4 . 9 Classes Destroyed 9 | 1 4 2 . 2 Builder 1 | . . . . 1 Tunneler 1 | . . 1 . . Hauler 1 | . 1 . . . Recycler 1 | 1 . . . . Watcher 2 | . 2 . . . Swarmer 13 | . 5 5 . 3 Grunt 16 | . 5 6 . 5 Duelist 1 | . . . . 1 Sentry 1 | . . 1 . . Best Kill Streak 6 | 1 3 3 . 6 Combat Bots Only 6 | . 3 3 . 6 Max Kills in Single Turn 3 | 1 2 2 . 3 Gunslinging . | . . . . . Exploded 2 | . 2 2 . 2 Melee . | . . . . . Uniques/NPCs Destroyed . | . . . . . Combat | -11 -10 -10 -10 -9 -------- Run | Scr Mat Min Exi Min Damage Taken 1098 | . 331 523 . 244 Core 250 | . 53 118 . 79 Absorbed by Shields . | . . . . . Core Remaining (%) 100 | 100 . . . . Volleys Fired 91 | 3 40 37 . 11 Largest 2 | 2 2 2 . 2 Hottest 53 | 40 40 40 . 53 Shots Fired 158 | 6 80 59 . 13 Gun 144 | 6 80 55 . 3 Cannon . | . . . . . Launcher 14 | . . 4 . 10 Special . | . . . . . Kinetic 144 | 6 80 55 . 3 Thermal . | . . . . . Explosive 14 | . . 4 . 10 Electromagnetic . | . . . . . Robot Hit Streak 17 | 3 16 17 . 10 Robot Miss Streak 4 | 1 4 1 . . Penetration Max . | . . . . . Secondary Targets . | . . . . . Shots Hit Robots 109 | 4 50 47 . 8 Core Hits 61 | 2 18 25 . 16 Critical Hits . | . . . . . Critical Kills . | . . . . . Critical Parts Destroyed . | . . . . . Melee Attacks . | . . . . . Impact . | . . . . . Slashing . | . . . . . Piercing . | . . . . . Sneak Attacks . | . . . . . Combat Hostiles . | . . . . . Follow-up Attacks . | . . . . . Damage Inflicted 2361 | 57 871 725 . 708 Guns 1094 | 57 574 435 . 28 Cannons . | . . . . . Explosions 1258 | . 288 290 . 680 Melee . | . . . . . Ramming 9 | . 9 . . . Kinetic 1094 | 57 574 435 . 28 Thermal 288 | . 288 . . . Explosive 970 | . . 290 . 680 Electromagnetic . | . . . . . Impact . | . . . . . Slashing . | . . . . . Piercing . | . . . . . Highest Corruption . | . . . . . Average Corruption . | . . . . . Corruption Purged . | . . . . . Overload Shots . | . . . . . Overflow Damage 45 | . 17 . . 28 Projectiles . | . . . . . Explosions 45 | . 17 . . 28 Melee . | . . . . . Knockbacks . | . . . . . Impact . | . . . . . Kinetic . | . . . . . Secondary . | . . . . . Self-Inflicted Damage 90 | . 4 . . 86 Shots 2 | . . . . 2 Rammed 1 | . 1 . . . Targets Rammed 1 | . 1 . . . Kicked . | . . . . . Crushed . | . . . . . Highest Temperature 22 | . . 22 . 20 Average Temperature 8 | . . 8 . 8 Received Heat Transfer 300 | . 66 183 . 51 Siege Activations . | . . . . . Robots Corrupted . | . . . . . Combat Hostiles . | . . . . . Parts Fried . | . . . . . Impact Corruptions . | . . . . . Robots Melted . | . . . . . Combat Hostiles . | . . . . . Parts Melted . | . . . . . Heat Transferred 150 | . 150 . . . Parts Sabotaged . | . . . . . Parts Stolen . | . . . . . Parts Stripped . | . . . . . Power Chain Reactions . | . . . . . Missiles Intercepted . | . . . . . Alert | -11 -10 -10 -10 -9 ------- Run | Scr Mat Min Exi Min Peak Influence 262 | 5 262 253 . 210 Initial 102 | . 3 102 . . Average 108 | 2 99 111 . 140 Maximum Alert Level 1 | . 1 1 . 1 Low Security (%) 89 | 100 91 89 . 85 Level 1 10 | . 8 10 . 14 Level 2 . | . . . . . Level 3 . | . . . . . Level 4 . | . . . . . Level 5 . | . . . . . High Security . | . . . . . Max Security . | . . . . . Squads Dispatched 4 | . 3 1 . . Investigation 2 | . 1 1 . . Extermination . | . . . . . Reinforcement 2 | . 2 . . . Assault . | . . . . . Garrison . | . . . . . Intercept . | . . . . . Construction Impeded . | . . . . . Haulers Reinforced . | . . . . . Stealth | -11 -10 -10 -10 -9 --------- Run | Scr Mat Min Exi Min Distress Signals . | . . . . . Communications Jammed . | . . . . . Distress Signals . | . . . . . Times Spotted 61 | . 35 15 . 11 Peak Tracking Total 5 | . 5 4 . 4 Tactical Retreats 12 | . 11 1 . . Traps | -11 -10 -10 -10 -9 ------- Run | Scr Mat Min Exi Min Traps Triggered 1 | . 1 . . . Indirectly . | . . . . . Trap Hack Attempts . | . . . . . Triggered . | . . . . . Disarmed . | . . . . . Reprogrammed . | . . . . . Reused . | . . . . . Traps Extracted . | . . . . . Installed . | . . . . . Triggered . | . . . . . Machines | -11 -10 -10 -10 -9 ---------- Run | Scr Mat Min Exi Min Machines Disabled 2 | . 2 . . . Max in Single Turn 2 | . 2 . . . Machines Sabotaged . | . . . . . Garrisons Compromised . | . . . . . Overloaded Fab Kills . | . . . . . Fab Network Shutdowns . | . . . . . Hacking | -11 -10 -10 -10 -9 --------- Run | Scr Mat Min Exi Min Machines Accessed 8 | . 6 1 1 . Terminals 6 | . 6 . . . Fabricators . | . . . . . Repair Stations . | . . . . . Recycling Units . | . . . . . Scanalyzers . | . . . . . Garrison Access . | . . . . . Total Hacks 17 | . 15 1 1 . Successful 10 | . 8 1 1 . Failed 6 | . 6 . . . Catastrophic 1 | . 1 . . . Database Lockouts 1 | . 1 . . . Manual 15 | . 15 . . . Terminals 15 | . 15 . . . Fabricators . | . . . . . Repair Stations . | . . . . . Recycling Units . | . . . . . Scanalyzers . | . . . . . Garrison Access . | . . . . . Terminal Hacks 5 | . 3 1 1 . Record 1 | . . . 1 . Robot Analysis 1 | . 1 . . . Open Door 1 | . . 1 . . Branch Access Points 1 | . 1 . . . Zone Layout 1 | . 1 . . . Fabricator Hacks . | . . . . . Repair Station Hacks . | . . . . . Recycling Unit Hacks . | . . . . . Scanalyzer . | . . . . . Garrison Access Hacks . | . . . . . Unauthorized Hacks 5 | . 5 . . . Terminals 5 | . 5 . . . Track 4 | . 4 . . . Botnet 1 | . 1 . . . Fabricators . | . . . . . Repair Stations . | . . . . . Recycling Units . | . . . . . Scanalyzers . | . . . . . Garrison Access . | . . . . . Data Cores Recovered . | . . . . . Used . | . . . . . Hacking Detections 5 | . 5 . . . Full Trace Events . | . . . . . Feedback Events . | . . . . . Feedback Blocked . | . . . . . Robot Schematics Acquired . | . . . . . Robots Built . | . . . . . Matter . | . . . . . Time . | . . . . . Total Robot Build Rating . | . . . . . Part Schematics Acquired . | . . . . . Parts Built . | . . . . . Matter . | . . . . . Time . | . . . . . Total Part Build Rating . | . . . . . Parts Repaired . | . . . . . Time . | . . . . . Parts Recycled . | . . . . . Recycled Matter . | . . . . . Retrieved Matter . | . . . . . Retrieved Components . | . . . . . Parts Scanalyzed . | . . . . . Part Schematics Acquired . | . . . . . Parts Damaged . | . . . . . Bothacking | -11 -10 -10 -10 -9 ------------ Run | Scr Mat Min Exi Min Used RIF Installer . | . . . . . Robots Hacked . | . . . . . Non-combat . | . . . . . Combat . | . . . . . Robot Hacks Applied . | . . . . . Relay Couplers Released . | . . . . . Robots Rewired . | . . . . . Allies Hacked . | . . . . . Hacks Repelled . | . . . . . Allies | -11 -10 -10 -10 -9 -------- Run | Scr Mat Min Exi Min Total Allies 1 | . . 1 . . Largest Group 1 | . . 1 . . Highest-Rated Group 31 | . . 31 . . Highest-Rated Ally 31 | . . 31 . . Total Orders . | . . . . . Ally Attacks 8 | . . 8 . . Total Damage 130 | . . 130 . . Kills 1 | . . 1 . . Allies Corrupted . | . . . . . Allies Melted . | . . . . . Intel | -11 -10 -10 -10 -9 ------- Run | Scr Mat Min Exi Min Robot Analysis Total 1 | . 1 . . . Derelict Logs Recovered 2 | . . 1 . 1 Drone Launches . | . . . . . Drone Recoveries . | . . . . . Exploration | -11 -10 -10 -10 -9 ------------- Run | Scr Mat Min Exi Min Turns Passed 2553 | 46 759 1010 496 242 Spaces Moved 1477 | 29 510 572 258 108 Core . | . . . . . Treads 596 | . 46 201 257 92 Legs 31 | 29 2 . . . Wheels 850 | . 462 371 1 16 Hover . | . . . . . Flight . | . . . . . Fastest Speed 100 | 120 100 120 150 170 Average Speed 147 | 120 113 155 182 195 Slowest Speed 220 | 120 180 220 200 200 Overloaded Moves . | . . . . . Propulsion Burnouts . | . . . . . Robots Hopped . | . . . . . Cave-ins Triggered . | . . . . . Exploration Rate (%) 53 | 3 69 98 62 37 Regions Visited 4 Branch Regions 3 Pre-discovered Areas 1 | . . . 1 . Known Exits Taken 1 | . 1 . . . Unknown Exits Taken 3 | 1 . 1 1 . Scrap Searched 2 | . . 2 . . Spaces Dug 58 | . . 28 . 30 Terrain Destroyed 183 | . 37 58 . 88 Melee . | . . . . . Projectile . | . . . . . AOE 183 | . 37 58 . 88 Terrain Rammed . | . . . . . Walls Destroyed . | . . . . . Machines Disabled . | . . . . . Actions | -11 -10 -10 -10 -9 --------- Run | Scr Mat Min Exi Min Total 1701 | 33 614 641 286 127 Wait 32 | . 22 10 . . Move 1473 | 28 509 571 257 108 Hop . | . . . . . Pick Up 47 | . 19 8 20 . Fast Attach 3 | 1 . . 1 1 Attach 6 | . . 3 . 3 Detach 1 | . . . . 1 Swap 27 | 1 11 9 3 3 Drop 20 | . 12 3 5 . Fire 91 | 3 40 37 . 11 Melee . | . . . . . Ram 1 | . 1 . . . Kick . | . . . . . Crush . | . . . . . Escape Stasis . | . . . . . Rewire . | . . . . . Trap . | . . . . . Miscellaneous . | . . . . . Route ------- -11/Scrapyard -10/Materials (discovered 3 exits: [*Mat x2] / *Min) -10/Mines (discovered 3 exits: [*Mat x2] / *Exi) -10/Exiles -9/Mines History --------- Turn | Location | Event 3 | -11/Scrapyard | Discovered new exit (range 3) 47 | -11/Scrapyard | Entered Materials 93 | -10/Materials | Identified exit to Mines 202 | -10/Materials | Central database locked down 321 | -10/Materials | Build established: Mutant 322 | -10/Materials | Discovered new exit (range 5) 483 | -10/Materials | Discovered new exit (range 15) 806 | -10/Materials | Entered Mines 809 | -10/Mines | Received a Mining Laser from a helpful Derelict 870 | -10/Mines | Met a Derelict bent on vengeance 971 | -10/Mines | Learned Materials emergency access door positions 1074 | -10/Mines | Discovered new exit (range 5) 1081 | -10/Mines | Received a Rocket Launcher from a helpful Derelict 1149 | -10/Mines | Met a Derelict shopkeep closing up shop 1412 | -10/Mines | Discovered new exit (range 7) 1474 | -10/Mines | Build established: Hauler-Mutant 1622 | -10/Mines | Core integrity fell below 50% 1807 | -10/Mines | Deemed a non-threat by the Exiles lab entrance 1809 | -10/Mines | Discovered new exit (range 5) 1816 | -10/Mines | Entered Exiles 1860 | -10/Exiles | Met 8R-AWN 1890 | -10/Exiles | Met EX-HEX 1950 | -10/Exiles | Met EX-BIN 1973 | -10/Exiles | Met EX-DEC 1980 | -10/Exiles | Learned location of Zion (-6) 2294 | -10/Exiles | Discovered new exit (range 10) 2312 | -10/Exiles | Entered Mines 2317 | -9/Mines | Core integrity fell below 20% 2344 | -9/Mines | Learned Materials garrison access intel 2356 | -9/Mines | Lost 3 parts (2n1w) 2494 | -9/Mines | A weapon hastily lodged in a ceiling crevice suddenly fell to the ground 2554 | -9/Mines | Destroyed by S-10 Pest with Light Assault Rifle Last Messages --------------- 02327_ The unstable cave ceiling collapses. 02329_ G-47 Trooper destroyed. 02329_ Destroyed Heat Sink. 02331_ G-34 Mercenary destroyed. 02334_ The unstable cave ceiling collapses. 02334_ Acquired 42 matter. 02338_ The unstable cave ceiling collapses. 02344_ Acquired derelict log, extracted data. Data stored: Materials garrison access intel. 02345_ The unstable cave ceiling collapses. 02494_ A Mak. Hammer has been hastily shoved under some rubble with a note attached: "Who needs nails when you have Unaware?" 02516_ C-30 ARC bursts open, deploying its payload. 02516_ S-10 Pest unfolds itself. 02516_ S-10 Pest destroyed. 02516_ U-05 Engineer destroyed. 02518_ S-10 Pest destroyed. 02522_ Acquired Wheel. 02525_ Acquired 2 matter. 02527_ Acquired 73 matter. Map ----- +----------------------------------------------------+ | ????????????????????????? ! ! ## ###?? | | ?????????????????????????? !! ?# #?? | | ?????????????????????????? ???# # #?? | | ?????????????????????????? ????# #?? | | ?????????????????????????? ?????### #?? | | ????????????????????# ##### #???###### #?? | | ????????????????????# #??## ##? | | ????????????????????####### ####/ #? | | ??????????????????????????# #? | | ???????????????????######## #? | | ????????????# ######## ##? | | ???????????????????######## ###????####?? | | ??????????????????????????#!| ###???????? | | ?????????????????????????## * #???????? | | ?????????????????????????# = #???????? | | ???????????????????????###=** ##??????? | | ??????????????????????## #??????? | | ??????????????????????# ##??????? | | ?????????????########## ###???????? | | ?????????????# ###?????????? | | ?????????# ###???????????? | | ????????? ##### #?????????????? | | ?????????? ??????## ##?????????????? | | ??????????? ??????????## #??????????????? | | ????????????????????????# #??????????????? | | ????????????????????????#@#??????????????? | | ????????????????????????#s#??????????????? | | ????????????????????????# s ?????????????? | | ????????????????????????#####????????????? | | ?????????????????????????????????????????? | | ?????????????????????????????????????????? | | ?????????????????????????????????????????? | | ?????????????????????????????????????????? | | ?????????????????????????????????????????? | | ?????????????????????????????????????????? | | ?????????????????????????????????????????? | | ?????????????????????????????????????????? | | | | | | | | | | | | | | | | | | | | | | | | | | | +----------------------------------------------------+ Best States ------------- Heat Dissipation 25 Energy Generation 12 Energy Capacity 265 Matter Stores 300 Matter Capacity 300 Sight Range 16 Terrain Scan Density 10 Evasion (%) 40 Recoil Reduction 2 Item Schematics ----------------- None Robot Schematics ------------------ None Fabricated ------------ Nothing Alien Tech Used ----------------- None Achievements -------------- None Challenges ------------ None Game ------ Seed MissileLightDisintegrator Manual? 0 Play Time 00:20:02 Cumulative 391.9 hours Start 2020.09.27 @ 13:42:28 End 2020.09.27 @ 14:01:15 Sessions 1 Manual Loads 0 Difficulty Rogue Special Mode None Game No. 53 Rogue 53 Adventurer 0 Explorer 0 Win Type - Total 20 Types 10/4/1/0/2/0/3/0/0 Lore% 86 Gallery% 93 Achievement% 79 Wizard Run 0 Options --------- ASCII 0 Keyboard 0 Movement Numpad Keybinds 0 Fullscreen 2 Font 18/Terminus Map View 76x50 Tactical HUD 1 Map Filters NONE Filters NONE Steam 1 RUN: 2cc3262b-b58c-4a1a-83d8-afb16fedbeb6